bitfinex/quotes_SOLUSD_20220227
["timestamp","ask_amount","ask_price","bid_price","bid_amount"]
[1645947771834,1.89489341,89.204,89.128,112.7]
[1645947772037,1.52094884,89.204,89.128,112.7]
[1645947772339,2.74678921,89.224,89.128,112.7]
[1645947772736,1.46409397,89.223,89.128,112.7]
[1645947773136,1.4794974,89.196,89.128,112.7]
[1645947773537,1.4794974,89.196,89.127,23.1484]
[1645947775541,1.4794974,89.196,89.128,112.7]
[1645947776442,1.4794974,89.196,89.127,23.1484]
[1645947777658,24.602,89.196,89.127,23.1484]
[1645947777859,1.88452027,89.195,89.127,23.1484]
[1645947797683,1.88452027,89.195,89.128,4.486]
[1645947808791,1.88452027,89.195,89.127,23.1484]
[1645947811416,1.88452027,89.195,89.186,1.2530339]
[1645947811417,16.2,89.19,89.186,1.2530339]
[1645947811615,1.76183031,89.189,89.127,23.1484]
[1645947811813,4.486,89.188,89.127,23.1484]
[1645947812014,6.68180446,89.188,89.127,23.1484]
[1645947812416,2.74678921,89.187,89.127,23.1484]
[1645947812616,4.486,89.186,89.127,23.1484]
[1645947813315,1.91729248,89.184,89.127,23.1484]
[1645947813514,16.2,89.18,89.127,23.1484]
[1645947813716,1.56979795,89.179,89.127,23.1484]
[1645947813917,1.56979795,89.179,89.113,4.486]
[1645947814116,1.56979795,89.179,89.114,23.5893]
[1645947814315,6.05579795,89.179,89.114,23.5893]
[1645947814916,1.90358867,89.178,89.114,23.5893]
[1645947816417,31.99971405,89.178,89.114,23.5893]
[1645947816616,1.79687026,89.177,89.082,72.7138]
[1645947816816,9.97202587,89.177,89.083,24.0386]
[1645947817217,1.79520542,89.175,89.083,24.0386]
[1645947817417,45.230014,89.159,89.083,24.0386]
[1645947817619,23.5224,89.158,89.083,24.0386]
[1645947817818,1.83329176,89.157,89.083,24.0386]
[1645947819119,4.488,89.156,89.083,24.0386]
[1645947820522,28.25352258,89.156,89.083,24.0386]
[1645947820724,1.64905247,89.155,89.083,24.0386]
[1645947820923,4.488,89.154,89.083,24.0386]
[1645947821125,16.2,89.14,89.083,24.0386]
[1645947821326,25.81534488,89.139,89.083,24.0386]
[1645947821526,1.94164702,89.138,89.083,24.0386]
[1645947844266,1.94164702,89.138,89.063,24.5143]
[1645947844468,31.72118925,89.137,89.064,23.2452]
[1645947844674,1.91066441,89.136,89.064,23.2452]
[1645947844873,4.489,89.135,89.064,23.2452]
[1645947845074,7.0,89.126,89.064,23.2452]
[1645947845274,16.2,89.12,89.064,23.2452]
[1645947845474,1.65843389,89.119,89.064,23.2452]
[1645947845873,3.85423835,89.119,89.064,23.2452]
[1645947846077,1.65843389,89.119,89.064,23.2452]
[1645947846275,2.74678921,89.118,89.064,23.2452]
[1645947846574,2.74678921,89.118,89.029,16.7709]
[1645947846575,2.74678921,89.118,89.031,4.489]
[1645947846774,4.49,89.117,89.012,53.7084]
[1645947846975,6.00179213,89.117,89.012,53.7084]
[1645947847176,27.23218925,89.116,89.012,49.2184]
[1645947847375,7.0,89.114,89.012,49.2184]
[1645947847575,16.2,89.1,89.012,49.2184]
[1645947847777,16.8557,89.09,89.012,49.2184]
[1645947847975,16.2,89.08,89.012,49.2184]
[1645947848175,24.65097042,89.079,89.012,49.2184]
[1645947848376,24.65097042,89.079,89.01,1.7]
[1645947848377,6.40943509,89.078,89.01,1.7]
[1645947848578,7.0,89.076,89.01,1.7]
[1645947848776,16.8612,89.06,89.01,1.7]
[1645947848978,16.2,89.05,89.01,1.7]
[1645947849175,1.46386916,89.049,89.01,1.7]
[1645947849577,5.95586916,89.049,89.01,1.7]
[1645947850575,1.46386916,89.049,89.01,1.7]
[1645947852480,1.46386916,89.049,89.0,1.72]
[1645947852481,4.492,89.048,89.0,1.72]
[1645947852778,32.1296474,89.048,89.0,1.72]
[1645947852982,52.95151754,89.048,89.0,1.72]
[1645947853178,1.66247765,89.047,89.0,1.72]
[1645947854983,16.2,89.05,89.0,1.72]
[1645947858582,4.493,89.077,89.0,1.72]
[1645947858783,4.492,89.113,89.001,2.74678921]
[1645947858981,16.2,89.11,89.002,136.2616]
[1645947859181,1.7298365,89.109,89.003,2.92253044]
[1645947859382,1.7298365,89.109,89.004,112.7]
[1645947859585,50.22426748,89.108,89.005,2.70411278]
[1645947859983,50.22426748,89.108,89.006,112.7]
[1645947860181,50.22426748,89.108,89.007,2.44438385]
[1645947860382,50.22426748,89.108,89.008,112.7]
[1645947860583,50.22426748,89.108,89.011,112.7]
[1645947860784,50.22426748,89.108,89.012,2.28723595]
[1645947860983,50.22426748,89.108,89.012,5.03402516]
[1645947861183,50.22426748,89.108,89.014,112.7]
[1645947861382,52.05550633,89.108,89.016,112.7]
[1645947862683,50.22426748,89.108,89.021,112.7]
[1645947862885,50.22426748,89.108,89.022,2.51935626]
[1645947863085,50.22426748,89.108,89.023,112.7]
[1645947863289,50.22426748,89.108,89.024,2.40775147]
[1645947863685,50.22426748,89.108,89.025,112.7]
[1645947863884,50.22426748,89.108,89.027,112.7]
[1645947864085,50.22426748,89.108,89.028,3.03628263]
[1645947864285,50.22426748,89.108,89.028,17.30403161]
[1645947864485,50.22426748,89.108,89.03,19.33552994]
[1645947864688,50.22426748,89.108,89.031,112.7]
[1645947871893,1.55509978,89.129,89.031,112.7]
[1645947871894,4.49,89.142,89.036,112.2]
[1645947872096,1.69230297,89.139,89.042,2.77444325]
[1645947872294,4.489,89.158,89.042,2.77444325]
[1645947872494,22.19768073,89.17,89.044,112.7]
[1645947872695,1.68247016,89.169,89.045,2.81302846]
[1645947872896,53.27917403,89.168,89.046,112.7]
[1645947873096,1.47282572,89.167,89.047,2.83587916]
[1645947873296,1.47282572,89.167,89.049,112.7]
[1645947873497,1.47282572,89.167,89.051,112.7]
[1645947873699,1.47282572,89.167,89.052,2.30551229]
[1645947873898,1.47282572,89.167,89.054,115.0830257]
[1645947874099,1.47282572,89.167,89.055,3.26905325]
[1645947874300,53.27917403,89.168,89.071,112.7]
[1645947874499,53.27917403,89.168,89.074,2.32007788]
[1645947874699,1.42515516,89.209,89.101,112.7]
[1645947874898,4.488,89.22,89.075,0.25]
[1645947874899,4.486,89.208,89.103,112.7]
[1645947875099,4.486,89.208,89.111,112.7]
[1645947875302,16.2,89.23,89.112,2.76526946]
[1645947875600,57.74040459,89.229,89.113,112.7]
[1645947875800,56.02209214,89.229,89.131,112.7]
[1645947876000,1.73094871,89.228,89.131,112.7]
[1645947876402,1.73094871,89.228,89.132,2.74678921]
[1645947879103,1.73094871,89.228,89.133,112.7]
[1645947879502,1.73094871,89.228,89.134,2.74678921]
[1645947880804,1.73094871,89.228,89.133,112.7]
[1645947881005,1.73094871,89.228,89.131,47.0573]
[1645947882105,4.485,89.227,89.131,47.0573]
[1645947882907,1.73094871,89.228,89.131,47.0573]
[1645947884006,24.02552258,89.227,89.131,47.0573]
[1645947884208,1.42032867,89.225,89.131,47.0573]
[1645947884406,16.2,89.22,89.131,47.0573]
[1645947884609,6.20560377,89.219,89.131,47.0573]
[1645947884805,28.51052258,89.219,89.131,47.0573]
[1645947885005,43.17729503,89.215,89.131,47.0573]
[1645947885207,4.485,89.214,89.131,47.0573]
[1645947885506,1.86755693,89.209,89.131,47.0573]
[1645947890307,7.23178921,89.208,89.131,47.0573]
[1645947890508,31.25731179,89.208,89.131,47.0573]
[1645947890708,3.70208786,89.207,89.131,47.0573]
[1645947890909,4.485,89.206,89.131,47.0573]
[1645947891109,33.04542969,89.206,89.131,47.0573]
[1645947891309,1.74477516,89.205,89.131,47.0573]
[1645947891508,16.2,89.19,89.131,47.0573]
[1645947891708,62.37955486,89.189,89.131,47.0573]
[1645947891909,60.44524827,89.189,89.131,47.0573]
[1645947892111,1.84648867,89.188,89.131,47.0573]
[1645947897337,60.44524827,89.189,89.132,112.7]
[1645947900541,60.44524827,89.189,89.131,47.0573]
[1645947900844,1.6863837,89.188,89.131,47.0573]
[1645947905747,60.44524827,89.189,89.132,112.7]
[1645947905949,60.44524827,89.189,89.131,47.0573]
[1645947907549,1.4479475,89.188,89.131,47.0573]
[1645947907749,60.44524827,89.189,89.132,112.7]
[1645947907952,60.44524827,89.189,89.132,115.44678921]
[1645947908151,60.44524827,89.189,89.133,2.74678921]
[1645947908750,1.91097697,89.218,89.133,2.74678921]
[1645947908952,1.91097697,89.218,89.141,112.7]
[1645947909150,16.8237,89.27,89.141,112.7]
[1645947909151,1.59797096,89.24,89.141,112.7]
[1645947909350,1.59797096,89.24,89.143,112.7]
[1645947909750,1.59797096,89.24,89.144,2.74678921]
[1645947909951,1.77678746,89.238,89.144,2.74678921]
[1645947910551,1.77678746,89.238,89.161,112.7]
[1645947910755,1.77678746,89.238,89.162,23.0134]
[1645947910950,1.77678746,89.238,89.163,112.7]
[1645947911950,1.77678746,89.238,89.162,23.0134]
[1645947912652,1.77678746,89.238,89.14,16.8226]
[1645947912854,1.77678746,89.238,89.141,23.0558]
[1645947913052,6.26078746,89.238,89.141,23.0558]
[1645947913254,4.484,89.237,89.141,23.0558]
[1645947913453,1.77678746,89.238,89.141,23.0558]
[1645947915858,4.484,89.237,89.141,23.0558]
[1645947916356,1.77678746,89.238,89.141,23.0558]
[1645947917055,25.80231004,89.238,89.141,23.0558]
[1645947917256,5.94474067,89.237,89.141,23.0558]
[1645947917456,7.0,89.236,89.141,23.0558]
[1645947917657,6.12159591,89.235,89.141,23.0558]
[1645947917958,16.2,89.23,89.141,23.0558]
[1645947918156,6.3827449,89.229,89.141,23.0558]
[1645947918657,24.8358,89.228,89.141,23.0558]
[1645947918856,6.16850927,89.227,89.141,23.0558]
[1645947921758,1.68350927,89.227,89.141,23.0558]
[1645947923559,1.68350927,89.227,89.142,112.7]
[1645947925561,1.68350927,89.227,89.141,23.0558]
[1645947926062,59.40331619,89.225,89.141,23.0558]
[1645947926262,16.2,89.22,89.141,23.0558]
[1645947926562,6.25407697,89.219,89.141,23.0558]
[1645947926964,1.76907697,89.219,89.141,23.0558]
[1645947929168,1.76907697,89.219,89.106,2.74678921]
[1645947929769,2.19580446,89.218,89.106,2.74678921]
[1645947929969,29.2821,89.217,89.106,2.74678921]
[1645947930169,1.49362228,89.216,89.106,2.74678921]
[1645947930372,7.0,89.214,89.106,2.74678921]
[1645947930671,7.0,89.214,89.102,23.3021]
[1645947930672,16.2,89.2,89.102,23.3021]
[1645947930871,16.837,89.19,89.102,23.3021]
[1645947931073,16.2,89.18,89.102,23.3021]
[1645947931272,70.82175468,89.179,89.102,23.3021]
[1645947931473,1.45438111,89.178,89.102,23.3021]
[1645947933473,4.487,89.177,89.102,23.3021]
[1645947935498,7.0,89.176,89.102,23.3021]
[1645947935693,4.487,89.175,89.102,23.3021]
[1645947935893,7.0,89.171,89.102,23.3021]
[1645947936093,16.2,89.17,89.102,23.3021]
[1645947936296,1.77244274,89.169,89.102,23.3021]
[1645947937896,1.77244274,89.169,89.097,22.9178]
[1645947938097,1.77244274,89.169,89.076,24.0525]
[1645947938098,4.51923195,89.169,89.076,24.0525]
[1645947938297,57.01155532,89.165,89.076,24.0525]
[1645947938497,5.97362587,89.164,89.076,24.0525]
[1645947938698,7.0,89.159,89.076,24.0525]
[1645947938898,8.71012713,89.159,89.076,24.0525]
[1645947939102,1.71012713,89.159,89.076,24.0525]
[1645947939499,2.74678921,89.158,89.076,24.0525]
[1645947940904,22.6466,89.157,89.076,24.0525]
[1645947941106,1.8979871,89.156,89.076,24.0525]
[1645947941706,8.8979871,89.156,89.076,24.0525]
[1645947943405,4.488,89.155,89.076,24.0525]
[1645947943606,6.38103857,89.155,89.076,24.0525]
[1645947946511,1.89303857,89.155,89.076,24.0525]
[1645947947811,7.0,89.154,89.076,24.0525]
[1645947948011,16.2,89.15,89.076,24.0525]
[1645947948211,57.67768208,89.149,89.076,24.0525]
[1645947948411,1.8074023,89.148,89.076,24.0525]
[1645947948611,7.0,89.146,89.076,24.0525]
[1645947948811,23.7749,89.145,89.076,24.0525]
[1645947949011,1.57423768,89.144,89.076,24.0525]
[1645947950713,1.57423768,89.144,89.077,112.7]
[1645947950914,56.07386087,89.149,89.077,115.44678921]
[1645947951114,56.07386087,89.149,89.077,138.64151755]
[1645947951316,56.07386087,89.149,89.079,112.7]
[1645947951714,56.07386087,89.149,89.081,112.7]
[1645947952115,56.07386087,89.149,89.083,112.7]
[1645947952515,56.07386087,89.149,89.085,112.7]
[1645947955318,56.07386087,89.149,89.084,14.25908231]
[1645947955517,56.07386087,89.149,89.08,16.833]
[1645947956918,1.77149696,89.148,89.08,16.833]
[1645947957119,1.77149696,89.148,89.076,24.0525]
[1645947957920,24.44839696,89.148,89.076,24.0525]
[1645947958121,22.6769,89.148,89.076,24.0525]
[1645947958424,1.56469058,89.147,89.076,24.0525]
[1645947958821,1.56469058,89.147,89.076,136.7525]
[1645947960022,1.56469058,89.147,89.076,24.0525]
[1645947962446,1.56469058,89.147,89.076,136.7525]
[1645947963048,1.56469058,89.147,89.076,24.0525]
[1645947969153,2.19580446,89.146,89.076,24.0525]
[1645947973259,4.488,89.145,89.076,24.0525]
[1645947973659,2.74678921,89.144,89.076,24.0525]
[1645947973860,4.488,89.143,89.076,24.0525]
[1645947974060,16.2,89.14,89.076,24.0525]
[1645947974263,6.06657799,89.139,89.03,16.8385]
[1645947974462,8.26238245,89.139,89.054,23.2805]
[1645947974664,21.65148984,89.139,89.054,23.2805]
[1645947974861,43.88639937,89.138,89.0,1.72]
[1645947975062,112.7,89.136,89.0,1.72]
[1645947975261,202.47,89.13,89.0,1.72]
[1645947975462,16.2,89.12,89.001,31.63996925]
[1645947975661,16.8545,89.1,89.001,31.63996925]
[1645947975860,16.2,89.09,89.0,1.72]
[1645947976061,5.99602286,89.089,89.0,1.72]
[1645947976263,1.50402286,89.089,89.0,1.72]
[1645947976560,7.23878921,89.088,89.0,1.72]
[1645947976764,1.40840407,89.087,89.0,1.72]
[1645947978862,1.40840407,89.087,88.994,46.8025]
[1645947979260,1.40840407,89.087,88.995,112.7]
[1645947980262,1.40840407,89.087,88.994,46.8025]
[1645947983663,2.74678921,89.086,88.994,46.8025]
[1645947983864,59.10358478,89.085,88.994,46.8025]
[1645947984065,16.2,89.08,88.994,46.8025]
[1645947984264,1.93492692,89.079,88.994,46.8025]
[1645947984665,1.93492692,89.079,88.995,112.7]
[1645947985066,1.93492692,89.079,88.996,4.492]
[1645947985269,1.93492692,89.079,88.997,112.7]
[1645947985466,1.93492692,89.079,88.998,4.492]
[1645947986669,1.93492692,89.079,88.997,4.492]
[1645947987091,16.2,89.08,88.998,2.74678921]
[1645947987268,16.2,89.08,88.999,4.492]
[1645947987667,16.2,89.08,89.0,2.74678921]
[1645947987870,54.61158478,89.085,89.001,4.492]
[1645947988271,54.61158478,89.085,89.002,2.74678921]
[1645947988467,54.61158478,89.085,89.003,4.492]
[1645947988870,54.61158478,89.085,89.004,2.74678921]
[1645947989069,54.61158478,89.085,89.005,4.492]
[1645947989270,1.93987973,89.084,89.005,4.492]
[1645947989468,1.58563163,89.083,89.006,23.5144]
[1645947989670,16.2,89.08,89.006,23.5144]
[1645947989869,1.84368583,89.079,89.006,23.5144]
[1645947991672,1.84368583,89.079,89.006,136.2144]
[1645947993078,2.19580446,89.083,89.006,136.2144]
[1645947993281,1.79663633,89.096,89.007,4.492]
[1645947993674,1.79663633,89.096,89.008,2.74678921]
[1645947993875,1.79663633,89.096,89.009,4.492]
[1645947994274,1.79663633,89.096,89.01,2.74678921]
[1645947994474,1.79663633,89.096,89.01,19.59288921]
[1645947994676,1.79663633,89.096,89.011,112.7]
[1645947995075,1.79663633,89.096,89.011,115.44678921]
[1645947995275,1.79663633,89.096,89.012,2.74678921]
[1645947998281,1.80025991,89.084,89.012,2.74678921]
[1645948000180,1.80025991,89.084,89.01,16.8461]
[1645948000380,23.3259,89.083,89.009,4.492]
[1645948000580,1.40809108,89.082,89.009,4.492]
[1645948000782,29.06636157,89.082,88.985,17.123]
[1645948000980,1.70821087,89.081,88.985,17.123]
[1645948001182,17.70079941,89.08,88.985,17.123]
[1645948001379,1.59768364,89.079,88.985,17.123]
[1645948001780,27.65827049,89.078,88.985,17.123]
[1645948001980,6.00649542,89.077,88.985,17.123]
[1645948002202,1.51449542,89.077,88.985,17.123]
[1645948002802,1.51449542,89.077,88.985,129.823]
[1645948003205,1.51449542,89.077,88.985,17.123]
[1645948003406,6.00649542,89.077,88.985,17.123]
[1645948004006,1.51449542,89.077,88.985,17.123]
[1645948004203,1.51449542,89.077,88.995,112.7]
[1645948005006,1.51449542,89.077,88.985,17.123]
[1645948006206,1.51449542,89.077,88.985,129.823]
[1645948007107,1.51449542,89.077,88.995,112.7]
[1645948007507,1.4792657,89.082,88.995,112.7]
[1645948007706,1.4792657,89.082,88.997,112.7]
[1645948008106,1.4792657,89.082,88.998,2.74678921]
[1645948013915,1.4792657,89.082,88.997,112.7]
[1645948014513,29.13753619,89.082,88.996,23.5178]
[1645948014714,1.5651549,89.081,88.996,23.5178]
[1645948016115,23.3259,89.083,88.996,23.5178]
[1645948016116,1.49750619,89.079,88.996,23.5178]
[1645948016525,32.15027049,89.078,88.996,23.5178]
[1645948016719,1.76739485,89.077,88.962,4.492]
[1645948016918,4.493,89.076,88.962,23.6925]
[1645948017119,4.493,89.076,88.963,31.65647564]
[1645948017321,16.86,89.07,88.963,31.65647564]
[1645948017519,16.2,89.06,88.962,23.6925]
[1645948017720,30.25790081,89.059,88.962,23.6925]
[1645948017922,45.20712864,89.058,88.962,23.6925]
[1645948018119,6.22422912,89.057,88.962,23.6925]
[1645948018320,48.41297285,89.057,88.962,23.6925]
[1645948018520,16.8634,89.05,88.962,23.6925]
[1645948018720,16.2,89.04,88.962,23.6925]
[1645948018921,1.43837106,89.039,88.962,23.6925]
[1645948019924,1.43837106,89.039,88.963,112.7]
[1645948020324,1.83553223,89.047,88.963,112.7]
[1645948020726,1.83553223,89.047,88.965,112.7]
[1645948021125,1.83553223,89.047,88.966,2.74678921]
[1645948021827,1.83553223,89.047,88.966,115.44678921]
[1645948022328,1.83553223,89.047,88.967,2.74678921]
[1645948025630,1.83553223,89.047,88.963,112.7]
[1645948026129,1.83553223,89.047,88.964,144.35729706]
[1645948026531,1.83553223,89.047,88.964,112.7]
[1645948026932,1.83553223,89.047,88.962,40.717]
[1645948027140,1.83553223,89.047,88.962,23.6925]
[1645948030137,1.83553223,89.047,88.963,112.7]
[1645948030339,1.83553223,89.047,88.962,23.6925]
[1645948031038,1.83553223,89.047,88.963,112.7]
[1645948032038,1.83553223,89.047,88.962,23.6925]
[1645948033645,1.83553223,89.047,88.963,31.65974649]
[1645948033944,1.83553223,89.047,88.962,23.6925]
[1645948035747,1.83553223,89.047,88.963,31.65959517]
[1645948037468,1.83553223,89.047,88.962,23.6925]
[1645948038072,42.88810228,89.046,88.951,23.1318]
[1645948038271,7.0,89.036,88.939,23.2218]
[1645948038471,16.2,89.03,88.924,4.494]
[1645948038672,54.94988759,89.029,88.903,4.495]
[1645948038871,202.47,89.02,88.903,4.495]
[1645948039072,16.2,89.01,88.882,117.196]
[1645948039372,16.8743,88.99,88.904,31.67825677]
[1645948039571,55.49936223,88.988,88.904,31.67825677]
[1645948039771,1.68638003,88.987,88.884,112.7]
[1645948039971,24.93538003,88.987,88.884,112.7]
[1645948040173,1.50016712,88.986,88.886,112.7]
[1645948040573,1.50016712,88.986,88.888,112.7]
[1645948040977,1.50016712,88.986,88.89,112.7]
[1645948041375,1.50016712,88.986,88.892,112.7]
[1645948041874,1.50016712,88.986,88.893,31.67825677]
[1645948042576,1.50016712,88.986,88.888,31.67825677]
[1645948047080,1.50016712,88.986,88.889,115.44678921]
[1645948047279,1.50016712,88.986,88.889,139.25201532]
[1645948047479,1.50016712,88.986,88.891,112.7]
[1645948047881,1.50016712,88.986,88.893,112.7]
[1645948048580,1.50016712,88.986,88.895,112.7]
[1645948048780,54.08405169,88.988,88.901,112.7]
[1645948048981,1.81560944,89.01,88.911,112.2]
[1645948049182,1.55206186,89.017,88.921,112.7]
[1645948049385,1.55206186,89.017,88.923,112.7]
[1645948049785,1.55206186,89.017,88.924,70.53808778]
[1645948049985,1.55206186,89.017,88.925,112.7]
[1645948049986,58.90319621,89.016,88.925,112.7]
[1645948050185,1.49348185,89.015,88.925,179.58846002]
[1645948050384,1.49348185,89.015,88.927,112.7]
[1645948050584,1.49348185,89.015,88.941,112.7]
[1645948050788,1.49348185,89.015,88.943,112.7]
[1645948054990,1.49348185,89.015,88.943,137.97855944]
[1645948055593,1.49348185,89.015,88.943,140.72534865]
[1645948056191,1.49348185,89.015,88.943,115.44678921]
[1645948056890,1.49348185,89.015,88.943,2.74678921]
[1645948059092,1.49348185,89.015,88.943,115.44678921]
[1645948059491,1.49348185,89.015,88.943,2.74678921]
[1645948061295,1.49348185,89.015,88.942,22.5083]
[1645948065396,1.49348185,89.015,88.943,112.7]
[1645948067203,1.49348185,89.015,88.942,22.5083]
[1645948068299,1.49348185,89.015,88.943,112.7]
[1645948069102,1.49348185,89.015,88.942,22.5083]
[1645948070525,1.49348185,89.015,88.943,4.495]
[1645948074832,1.49348185,89.015,88.942,22.5083]
[1645948075230,26.43669148,89.014,88.942,22.5083]
[1645948075429,16.2,89.0,88.912,27.59088921]
[1645948075630,24.56153057,88.999,88.913,22.7928]
[1645948075831,1.60774385,88.998,88.913,22.7928]
[1645948076131,1.60774385,88.998,88.914,31.67722527]
[1645948076936,1.60774385,88.998,88.913,22.7928]
[1645948077133,4.496,88.997,88.913,22.7928]
[1645948077633,1.85184436,88.996,88.913,22.7928]
[1645948077833,7.0,88.986,88.87,0.84620542]
[1645948078033,16.2,88.98,88.876,46.9601]
[1645948078233,16.2,88.97,88.877,2.74678921]
[1645948078432,1.90613506,88.968,88.876,78.64463873]
[1645948078633,1.90613506,88.968,88.878,31.68453873]
[1645948079036,1.90613506,88.968,88.877,31.68453873]
[1645948082734,1.90613506,88.968,88.878,2.74678921]
[1645948083536,1.90613506,88.968,88.879,31.68453873]
[1645948084240,1.90613506,88.968,88.877,31.68453873]
[1645948084540,1.90613506,88.968,88.877,34.43132794]
[1645948084939,1.90613506,88.968,88.877,31.68453873]
[1645948085141,1.90613506,88.968,88.878,31.68453873]
[1645948085541,1.90613506,88.968,88.877,31.68453873]
[1645948087145,1.90613506,88.968,88.876,46.9601]
[1645948096783,7.0,88.964,88.876,46.9601]
[1645948096983,46.58286079,88.949,88.876,46.9601]
[1645948097183,24.4369,88.948,88.876,46.9601]
[1645948097383,1.7383478,88.947,88.876,46.9601]
[1645948105695,1.7383478,88.947,88.87,0.84620542]
[1645948108700,7.0,88.941,88.87,0.84620542]
[1645948108901,16.2,88.93,88.87,0.84620542]
[1645948109201,1.65893017,88.928,88.87,0.84620542]
[1645948111902,1.65893017,88.928,88.87,25.84620542]
[1645948112904,21.94169148,88.927,88.87,25.84620542]
[1645948113207,21.94169148,88.927,88.858,4.498]
[1645948113208,44.85865086,88.925,88.858,4.498]
[1645948113408,16.2,88.91,88.858,4.498]
[1645948113610,50.46927379,88.909,88.858,4.498]
[1645948113808,1.81636196,88.908,88.858,4.498]
[1645948117915,1.81636196,88.908,88.752,11.7489012]
[1645948118115,7.0,88.906,88.787,45.3853]
[1645948118316,2.74678921,88.907,88.787,45.3853]
[1645948118317,4.38880356,88.907,88.787,45.3853]
[1645948118514,112.7,88.898,88.787,45.3853]
[1645948118714,16.2,88.89,88.787,45.3853]
[1645948118913,16.2,88.89,88.787,42.8853]
[1645948118914,59.58687168,88.889,88.787,42.8853]
[1645948119114,58.05230609,88.875,88.787,42.8853]
[1645948119515,1.66199544,88.874,88.787,42.8853]
[1645948119713,1.66199544,88.874,88.787,68.16385944]
[1645948120516,1.66199544,88.874,88.787,42.8853]
[1645948120924,1.66199544,88.874,88.788,28.02534865]
[1645948121118,1.66199544,88.874,88.787,42.8853]
[1645948121518,1.66199544,88.874,88.787,59.9046]
[1645948121717,1.66199544,88.874,88.788,112.7]
[1645948122137,1.66199544,88.874,88.788,115.44678921]
[1645948122338,1.66199544,88.874,88.788,2.74678921]
[1645948122638,1.66199544,88.874,88.787,59.9046]
[1645948122937,58.05230609,88.875,88.787,59.9046]
[1645948122938,58.05230609,88.875,88.789,27.79317408]
[1645948123138,58.05230609,88.875,88.79,145.7884]
[1645948123338,58.05230609,88.875,88.791,2.28411357]
[1645948123541,58.05230609,88.875,88.792,112.7]
[1645948123742,58.05230609,88.875,88.793,2.84374202]
[1645948123940,58.05230609,88.875,88.794,112.7]
[1645948124241,58.05230609,88.875,88.795,18.226334]
[1645948124439,58.05230609,88.875,88.802,2.51279003]
[1645948124642,58.05230609,88.875,88.804,112.7]
[1645948124841,58.05230609,88.875,88.805,2.35609982]
[1645948125140,58.05230609,88.875,88.806,112.7]
[1645948125340,58.05230609,88.875,88.806,130.99115291]
[1645948125538,58.05230609,88.875,88.807,15.5443637]
[1645948125740,58.05230609,88.875,88.808,112.7]
[1645948126141,58.05230609,88.875,88.808,115.44678921]
[1645948126341,58.05230609,88.875,88.809,2.74678921]
[1645948129844,58.05230609,88.875,88.81,112.7]
[1645948130044,58.05230609,88.875,88.811,2.91388258]
[1645948130246,58.05230609,88.875,88.812,112.7]
[1645948130444,58.05230609,88.875,88.812,130.99115291]
[1645948130646,58.05230609,88.875,88.814,112.7]
[1645948131046,58.05230609,88.875,88.816,112.7]
[1645948131450,58.05230609,88.875,88.818,112.7]
[1645948131846,58.05230609,88.875,88.82,112.7]
[1645948132247,58.05230609,88.875,88.821,2.74678921]
[1645948132446,1.53910525,88.919,88.821,2.74678921]
[1645948132648,1.91762747,88.929,88.831,112.7]
[1645948132847,1.69755345,88.949,88.831,112.7]
[1645948133047,4.5,88.965,88.833,112.7]
[1645948133048,6.40072853,88.965,88.833,112.7]
[1645948133348,6.40072853,88.965,88.834,27.87202809]
[1645948133647,1.79529937,88.963,88.836,2.90439221]
[1645948133950,1.79529937,88.963,88.841,112.7]
[1645948134446,26.33729639,88.963,88.85,16.8782]
[1645948134649,1.75645685,88.962,88.851,137.0294]
[1645948134847,1.75645685,88.962,88.851,155.32055291]
[1645948135149,1.75645685,88.962,88.852,2.74678921]
[1645948135350,4.499,88.961,88.852,2.74678921]
[1645948135547,16.2,88.96,88.852,2.74678921]
[1645948135748,6.25152671,88.959,88.852,2.74678921]
[1645948137347,6.25152671,88.959,88.852,130.99115291]
[1645948137549,6.25152671,88.959,88.852,128.2443637]